[Event "Austrian Youth-ch U16 Girls 2024"]
[Site "Leibnitz"]
[Date "2024.03.25"]
[Round "3.1"]
[White "Brunner, Josephina Akiko"]
[Black "Giselbrecht, Leefke"]
[Result "1/2-1/2"]
[ECO "B36"]
[WhiteElo "1697"]
[BlackElo "1695"]
[Annotator "NA RC"]
[PlyCount "88"]
[EventDate "2024.03.23"]
[EventType "swiss"]
[EventCountry "AUT"]
[SourceTitle "playchess.com"]
[Source "ChessBase"]
[SourceQuality "1"]
[TimeControl "5400+30"]

1. e4 {[%emt 0:00:04]} c5 {[%emt 0:00:10]} 2. Nf3 {[%emt 0:00:27]} Nc6 {[%emt 0:00:25]} 3. d4 {[%emt 0:00:31]} cxd4 {[%emt 0:00:26]} 4. Nxd4 {[%emt 0:00:18]} g6 {[%emt 0:00:32]} 5. c4 {[%emt 0:00:41]} Nf6 {[%emt 0:03:48]} 6. Nc3 {[%emt 0:00:39]} Nxd4 {[%emt 0:00:35]} 7. Qxd4 {[%emt 0:00:23]} d6 {[%emt 0:00:46]} 8. Be2 {[%emt 0:01:58]} Bg7 {[%emt 0:02:07]} 9. Be3 {[%emt 0:01:50]} O-O {[%emt 0:01:21]} 10. Qd2 {[%emt 0:01:38]} Be6 {[%emt 0:03:51]} 11. O-O {[%emt 0:02:49]} a6 {[%emt 0:03:32]} 12. f4 {[%emt 0:02:36]} Rc8 {[%emt 0:07:01]} 13. b3 {[%emt 0:03:21]} Bg4 {[%emt 0:04:52]} 14. Rac1 {[%emt 0:05:05]} Bxe2 {[%emt 0:04:58]} 15. Qxe2 {[%emt 0:01:07]} Qa5 {[%emt 0:00:22]} 16. Bd2 {[%emt 0:07:37]} Qc5+ {[%emt 0:03:27]} 17. Kh1 {[%emt 0:06:45]} Qh5 {[%emt 0:04:32]} 18. Qxh5 {[%emt 0:02:44]} Nxh5 {[%emt 0:00:05]} 19. Nd5 {[%emt 0:00:59]} Rfe8 {[%emt 0:01:52]} 20. g4 {[%emt 0:11:14]} Nf6 {[%emt 0:01:27]} 21. Nxf6+ {[%emt 0:01:36]} Bxf6 {[%emt 0:00:31]} 22. Bc3 {[%emt 0:00:49]} Bxc3 {[%emt 0:04:28]} 23. Rxc3 {[%emt 0:00:06]} b5 {[%emt 0:00:14]} 24. Rfc1 {[%emt 0:01:00]} b4 {[%emt 0:00:20]} 25. Rd3 {[%emt 0:00:17]} Rc5 {[%emt 0:02:58]} 26. Rd5 {[%emt 0:00:52]} Rec8 {[%emt 0:00:47]} 27. Rcd1 {[%emt 0:02:45]} Kf8 {[%emt 0:07:41]} 28. Kg2 {[%emt 0:06:17]} f6 {[%emt 0:02:27]} 29. f5 {[%emt 0:03:56]} Kf7 {[%emt 0:01:37]} 30. h4 {[%emt 0:02:52]} g5 {[%emt 0:05:21]} 31. h5 {[%emt 0:01:21]} h6 {[%emt 0:00:07]} 32. Kf3 {[%emt 0:00:37]} Ke8 {[%emt 0:02:09]} 33. Ke3 {[%emt 0:00:54]} Kd7 {[%emt 0:01:16]} 34. Rxc5 {[%emt 0:01:33]} Rxc5 {[%emt 0:00:04]} 35. Kd4 {[%emt 0:06:59]} Ra5 {[%emt 0:09:32]} 36. Rd2 {[%emt 0:00:28]} e6 {[%emt 0:00:43]} 37. fxe6+ {[%emt 0:01:16]} Kxe6 {[%emt 0:00:07]} 38. Re2 {[%emt 0:02:15]} Ra3 {[%emt 0:04:29]} 39. c5 {[%emt 0:06:36]} dxc5+ {[%emt 0:02:41]} 40. Kxc5 {[%emt 0:00:09]} a5 {[%emt 0:00:14]} 41. Kd4 {[%emt 0:01:06]} Kd6 {[%emt 0:00:52]} 42. Rf2 {[%emt 0:00:52]} Ke6 {[%emt 0:00:06]} 43. Re2 {[%emt 0:00:14]} Kd6 {[%emt 0:00:06]} 44. Rf2 {[%emt 0:00:10]} Ke6 {[%emt 0:00:11]} 1/2-1/2

[Event "Austrian Youth-ch U16 Girls 2024"]
[Site "Leibnitz"]
[Date "2024.03.25"]
[Round "3.2"]
[White "Kotliar, Anfisa"]
[Black "Theurl, Rafaela"]
[Result "1-0"]
[ECO "C41"]
[WhiteElo "1644"]
[BlackElo "1684"]
[Annotator "NA RC"]
[PlyCount "57"]
[EventDate "2024.03.23"]
[EventType "swiss"]
[EventCountry "AUT"]
[SourceTitle "playchess.com"]
[Source "ChessBase"]
[SourceQuality "1"]
[TimeControl "5400+30"]

1. e4 {[%emt 0:00:02]} e5 {[%emt 0:00:06]} 2. Nf3 {[%emt 0:00:05]} d6 {[%emt 0:00:06]} 3. Bc4 {[%emt 0:00:47]} Nf6 {[%emt 0:00:17]} 4. Ng5 {[%emt 0:06:12]} d5 {[%emt 0:01:14]} 5. exd5 {[%emt 0:03:14]} Nxd5 {[%emt 1:31:17]} 6. d4 {[%emt 0:28:02]} Be7 {[%emt 0:00:00]} 7. Nxf7 {[%emt 0:27:58]} Kxf7 {[%emt 0:00:00]} 8. Qf3+ {[%emt 0:12:15]} Ke6 {[%emt 0:00:00]} 9. O-O {[%emt 0:02:58]} Rf8 {[%emt 0:00:00]} 10. Qg4+ {[%emt 0:03:51]} Kf7 {[%emt 0:00:00]} 11. Qf3+ {[%emt 0:01:29]} Ke6 {[%emt 0:00:00]} 12. Qh3+ {[%emt 0:05:06]} Kd6 {[%emt 0:00:00]} 13. dxe5+ {[%emt 0:01:05]} Kc5 {[%emt 0:00:00]} 14. Qb3 {[%emt 0:02:17]} a6 {[%emt 0:00:00]} 15. Rd1 {[%emt 0:01:28]} Be6 {[%emt 0:00:00]} 16. Nc3 {[%emt 0:00:41]} Bg5 {[%emt 0:00:00]} 17. Bxd5 {[%emt 0:00:42]} b5 {[%emt 0:00:00]} 18. Bxg5 {[%emt 0:00:24]} Bxd5 {[%emt 0:00:00]} 19. Rxd5+ {[%emt 0:00:10]} Kc6 {[%emt 0:00:00]} 20. Rxd8 {[%emt 0:00:10]} Rxd8 {[%emt 0:00:00]} 21. Bxd8 {[%emt 0:00:05]} Kb6 {[%emt 0:00:00]} 22. Rd1 {[%emt 0:00:18]} Nc6 {[%emt 0:00:00]} 23. Nd5+ {[%emt 0:00:38]} Kb7 {[%emt 0:00:00]} 24. Bxc7 {[%emt 0:00:11]} Ne7 {[%emt 0:00:00]} 25. Nxe7 {[%emt 0:00:09]} Kxc7 {[%emt 0:00:00]} 26. Qd5 {[%emt 0:00:12]} Rf8 {[%emt 0:00:00]} 27. Qc6+ {[%emt 0:00:10]} Kb8 {[%emt 0:00:00]} 28. Rd7 {[%emt 0:00:07]} g6 {[%emt 0:00:00]} 29. Qb7# {[%emt 0:00:04]} 1-0

[Event "Austrian Youth-ch U16 Girls 2024"]
[Site "Leibnitz"]
[Date "2024.03.25"]
[Round "3.3"]
[White "Poetscher, Katharina"]
[Black "Donets, Alina"]
[Result "1-0"]
[ECO "C48"]
[WhiteElo "1794"]
[BlackElo "1658"]
[Annotator "NA RC"]
[PlyCount "91"]
[EventDate "2024.03.23"]
[EventType "swiss"]
[EventCountry "AUT"]
[SourceTitle "playchess.com"]
[Source "ChessBase"]
[SourceQuality "1"]
[TimeControl "5400+30"]

1. e4 {[%emt 0:00:03]} e5 {[%emt 0:00:05]} 2. Nf3 {[%emt 0:00:08]} Nc6 {[%emt 0:00:06]} 3. Bb5 {[%emt 0:00:09]} Bc5 {[%emt 0:00:17]} 4. O-O {[%emt 0:00:40]} d6 {[%emt 0:00:10]} 5. d4 {[%emt 0:04:39]} exd4 {[%emt 0:00:28]} 6. Nxd4 {[%emt 0:00:27]} Bd7 {[%emt 0:00:15]} 7. Nxc6 {[%emt 0:01:23]} bxc6 {[%emt 0:00:20]} 8. Bc4 {[%emt 0:02:50]} Nf6 {[%emt 0:05:41]} 9. Nc3 {[%emt 0:04:32]} Be6 {[%emt 1:27:38]} 10. Bxe6 {[%emt 0:14:29]} fxe6 {[%emt 0:00:00]} 11. e5 {[%emt 0:00:41]} dxe5 {[%emt 0:00:00]} 12. Qe2 {[%emt 0:01:07]} O-O {[%emt 0:00:00]} 13. Qxe5 {[%emt 0:09:59]} Qd6 {[%emt 0:00:00]} 14. Qe2 {[%emt 0:00:51]} h5 {[%emt 0:00:00]} 15. h3 {[%emt 0:01:36]} Rae8 {[%emt 0:00:00]} 16. Bg5 {[%emt 0:03:44]} Nd5 {[%emt 0:00:00]} 17. Rad1 {[%emt 0:13:15]} Nxc3 {[%emt 0:00:00]} 18. bxc3 {[%emt 0:00:12]} Qg3 {[%emt 0:00:00]} 19. Be3 {[%emt 0:01:04]} Bxe3 {[%emt 0:00:00]} 20. fxe3 {[%emt 0:00:58]} Rxf1+ {[%emt 0:00:00]} 21. Rxf1 {[%emt 0:00:12]} Rd8 {[%emt 0:00:00]} 22. Kh1 {[%emt 0:06:39]} Qe5 {[%emt 0:00:00]} 23. Qf3 {[%emt 0:01:58]} Rd7 {[%emt 0:00:00]} 24. Qxc6 {[%emt 0:02:55]} Rd2 {[%emt 0:00:00]} 25. Qa8+ {[%emt 0:13:31]} Kh7 {[%emt 0:00:00]} 26. Qxa7 {[%emt 0:00:31]} Qe4 {[%emt 0:00:00]} 27. Rg1 {[%emt 0:00:38]} Rxc2 {[%emt 0:00:00]} 28. Qxc7 {[%emt 0:04:20]} Rxa2 {[%emt 0:00:00]} 29. Qc5 {[%emt 0:00:07]} Kh6 {[%emt 0:00:00]} 30. Qd4 {[%emt 0:01:49]} Qxd4 {[%emt 0:00:00]} 31. exd4 {[%emt 0:00:06]} Rc2 {[%emt 0:00:00]} 32. Re1 {[%emt 0:00:06]} Rxc3 {[%emt 0:00:00]} 33. Rxe6+ {[%emt 0:00:06]} Kg5 {[%emt 0:00:00]} 34. Re5+ {[%emt 0:01:11]} Kh4 {[%emt 0:00:00]} 35. Kh2 {[%emt 0:00:37]} Rc2 {[%emt 0:00:22]} 36. Re4+ {[%emt 0:02:49]} Kg5 {[%emt 0:00:12]} 37. Kg3 {[%emt 0:00:22]} Kf5 {[%emt 0:00:55]} 38. Kf3 {[%emt 0:01:34]} Rf2+ {[%emt 0:00:34]} 39. Kxf2 {[%emt 0:00:51]} Kxe4 {[%emt 0:00:05]} 40. Kg3 {[%emt 0:00:09]} Kxd4 {[%emt 0:05:34]} 41. Kh4 {[%emt 0:00:38]} Ke4 {[%emt 0:01:48]} 42. Kxh5 {[%emt 0:00:32]} Kf4 {[%emt 0:00:24]} 43. Kg6 {[%emt 0:00:50]} Kg3 {[%emt 0:00:06]} 44. Kxg7 {[%emt 0:00:04]} Kxg2 {[%emt 0:00:05]} 45. h4 {[%emt 0:00:04]} Kh3 {[%emt 0:00:04]} 46. h5 {[%emt 0:00:03]} 1-0

[Event "Austrian Youth-ch U16 Girls 2024"]
[Site "Leibnitz"]
[Date "2024.03.25"]
[Round "3.4"]
[White "Luca, Iana"]
[Black "Gaisberger, Nina"]
[Result "1/2-1/2"]
[ECO "A37"]
[WhiteElo "1452"]
[BlackElo "1711"]
[Annotator "NA RC"]
[PlyCount "167"]
[EventDate "2024.03.23"]
[EventType "swiss"]
[EventCountry "AUT"]
[SourceTitle "playchess.com"]
[Source "ChessBase"]
[SourceQuality "1"]
[TimeControl "5400+30"]

1. c4 {[%emt 0:00:03]} c5 {[%emt 0:00:05]} 2. Nc3 {[%emt 0:00:06]} Nc6 {[%emt 0:00:04]} 3. g3 {[%emt 0:00:07]} g6 {[%emt 0:00:06]} 4. Bg2 {[%emt 0:00:07]} Bg7 {[%emt 0:00:06]} 5. Nf3 {[%emt 0:00:33]} d6 {[%emt 0:00:09]} 6. O-O {[%emt 0:01:57]} Bf5 {[%emt 0:00:05]} 7. d3 {[%emt 0:01:28]} Qd7 {[%emt 0:00:17]} 8. Rb1 {[%emt 0:04:58]} Bh3 {[%emt 0:02:48]} 9. a3 {[%emt 0:03:22]} Bxg2 {[%emt 0:02:20]} 10. Kxg2 {[%emt 0:00:07]} e6 {[%emt 0:01:38]} 11. e4 {[%emt 0:02:24]} Nge7 {[%emt 0:04:00]} 12. Re1 {[%emt 0:05:41]} O-O {[%emt 0:02:19]} 13. Be3 {[%emt 0:04:48]} Rad8 {[%emt 0:11:04]} 14. Qc2 {[%emt 0:14:55]} f5 {[%emt 0:14:29]} 15. b4 {[%emt 0:05:58]} fxe4 {[%emt 0:07:17]} 16. dxe4 {[%emt 0:06:26]} Nd4 {[%emt 0:01:14]} 17. Bxd4 {[%emt 0:00:30]} cxd4 {[%emt 0:02:00]} 18. Ne2 {[%emt 0:04:51]} e5 {[%emt 0:00:29]} 19. h3 {[%emt 0:03:09]} Rc8 {[%emt 0:04:18]} 20. Qb3 {[%emt 0:00:43]} Kh8 {[%emt 0:02:21]} 21. b5 {[%emt 0:02:43]} Ng8 {[%emt 0:05:36]} 22. Rec1 {[%emt 0:06:20]} Nf6 {[%emt 0:02:56]} 23. Qd3 {[%emt 0:01:34]} Qe7 {[%emt 0:03:25]} 24. Rb3 {[%emt 0:06:24]} Nd7 {[%emt 0:00:40]} 25. Rb4 {[%emt 0:02:09]} Nc5 {[%emt 0:01:44]} 26. Qb1 {[%emt 0:00:28]} b6 {[%emt 0:02:40]} 27. Rd1 {[%emt 0:01:33]} Qf7 {[%emt 0:02:57]} 28. Neg1 {[%emt 0:00:44]} Bh6 {[%emt 0:02:58]} 29. Qc2 {[%emt 0:08:26]} Rc7 {[%emt 0:01:15]} 30. h4 {[%emt 0:00:54]} Rfc8 {[%emt 0:00:11]} 31. Nh3 {[%emt 0:03:06]} Nd7 {[%emt 0:01:13]} 32. Nhg5 {[%emt 0:00:41]} Bxg5 {[%emt 0:00:46]} 33. Nxg5 {[%emt 0:00:07]} Qg8 {[%emt 0:00:41]} 34. Rc1 {[%emt 0:00:25]} h6 {[%emt 0:01:32]} 35. Nh3 {[%emt 0:00:17]} Qf7 {[%emt 0:01:37]} 36. Qd2 {[%emt 0:01:18]} Kg7 {[%emt 0:00:32]} 37. Qc2 {[%emt 0:00:17]} Nf6 {[%emt 0:00:17]} 38. f3 {[%emt 0:00:24]} d5 {[%emt 0:00:46]} 39. exd5 {[%emt 0:01:31]} Nxd5 {[%emt 0:00:11]} 40. Qe2 {[%emt 0:03:12]} Nxb4 {[%emt 0:00:45]} 41. axb4 {[%emt 0:00:15]} Qe7 {[%emt 0:01:30]} 42. Nf2 {[%emt 0:01:51]} Re8 {[%emt 0:01:02]} 43. Nd3 {[%emt 0:00:28]} Qe6 {[%emt 0:00:30]} 44. c5 {[%emt 0:00:50]} bxc5 {[%emt 0:00:30]} 45. Nxc5 {[%emt 0:00:09]} Qe7 {[%emt 0:03:39]} 46. Ne6+ {[%emt 0:00:43]} Qxe6 {[%emt 0:00:07]} 47. Rxc7+ {[%emt 0:00:05]} Re7 {[%emt 0:00:05]} 48. Qc2 {[%emt 0:01:32]} Qf7 {[%emt 0:01:20]} 49. Rc5 {[%emt 0:00:33]} Qf5 {[%emt 0:02:30]} 50. Qd2 {[%emt 0:02:12]} d3 {[%emt 0:01:49]} 51. g4 {[%emt 0:00:40]} Qd7 {[%emt 0:00:41]} 52. Rc3 {[%emt 0:01:14]} e4 {[%emt 0:01:22]} 53. Kf1 {[%emt 0:01:08]} Qxb5 {[%emt 0:02:26]} 54. fxe4 {[%emt 0:00:23]} Rxe4 {[%emt 0:01:09]} 55. Rxd3 {[%emt 0:00:39]} Rxg4 {[%emt 0:00:45]} 56. Qc3+ {[%emt 0:00:08]} Kf7 {[%emt 0:01:11]} 57. Qc7+ {[%emt 0:00:10]} Kf6 {[%emt 0:01:07]} 58. Qd6+ {[%emt 0:00:11]} Kf5 {[%emt 0:00:41]} 59. Kf2 {[%emt 0:01:16]} Qb6+ {[%emt 0:01:52]} 60. Qc5+ {[%emt 0:00:15]} Qxc5+ {[%emt 0:00:32]} 61. bxc5 {[%emt 0:00:08]} Rc4 {[%emt 0:00:20]} 62. Ra3 {[%emt 0:00:22]} Rxc5 {[%emt 0:00:19]} 63. Rxa7 {[%emt 0:00:07]} Rc4 {[%emt 0:01:02]} 64. h5 {[%emt 0:00:24]} Rf4+ {[%emt 0:01:18]} 65. Kg3 {[%emt 0:00:17]} Rg4+ {[%emt 0:00:18]} 66. Kf3 {[%emt 0:00:08]} gxh5 {[%emt 0:00:09]} 67. Ra8 {[%emt 0:00:36]} Rg1 {[%emt 0:01:00]} 68. Rf8+ {[%emt 0:00:10]} Ke6 {[%emt 0:00:10]} 69. Ra8 {[%emt 0:00:29]} Kf7 {[%emt 0:00:23]} 70. Ra7+ {[%emt 0:00:05]} Kg8 {[%emt 0:00:09]} 71. Ra8+ {[%emt 0:00:31]} Kh7 {[%emt 0:00:05]} 72. Ra7+ {[%emt 0:00:06]} Rg7 {[%emt 0:00:05]} 73. Ra4 {[%emt 0:00:14]} Rf7+ {[%emt 0:00:21]} 74. Kg3 {[%emt 0:00:10]} Kg6 {[%emt 0:00:05]} 75. Ra6+ {[%emt 0:00:23]} Rf6 {[%emt 0:00:07]} 76. Ra8 {[%emt 0:00:17]} Kg5 {[%emt 0:00:15]} 77. Rg8+ {[%emt 0:00:27]} Rg6 {[%emt 0:00:07]} 78. Ra8 {[%emt 0:00:18]} h4+ {[%emt 0:00:32]} 79. Kh3 {[%emt 0:00:33]} Kh5 {[%emt 0:00:00]} 80. Ra5+ {[%emt 0:00:05]} Rg5 {[%emt 0:00:00]} 81. Ra3 {[%emt 0:01:23]} Rf5 {[%emt 0:01:04]} 82. Ra4 {[%emt 0:02:39]} Rf3+ {[%emt 0:00:10]} 83. Kg2 {[%emt 0:00:12]} Rg3+ {[%emt 0:00:17]} 84. Kh2 {[%emt 0:00:06]} 1/2-1/2

[Event "Austrian Youth-ch U16 Girls 2024"]
[Site "Leibnitz"]
[Date "2024.03.26"]
[Round "4.1"]
[White "Brunner, Josephina Akiko"]
[Black "Kotliar, Anfisa"]
[Result "1-0"]
[ECO "B07"]
[WhiteElo "1697"]
[BlackElo "1644"]
[Annotator "NA RC"]
[PlyCount "59"]
[EventDate "2024.03.23"]
[EventType "swiss"]
[EventCountry "AUT"]
[SourceTitle "playchess.com"]
[Source "ChessBase"]
[SourceQuality "1"]
[TimeControl "5400+30"]

1. e4 {[%emt 0:00:04]} d6 {[%emt 0:00:04]} 2. d4 {[%emt 0:00:21]} Nf6 {[%emt 0:00:13]} 3. Nc3 {[%emt 0:00:10]} g6 {[%emt 0:00:09]} 4. Bg5 {[%emt 0:00:22]} Bg7 {[%emt 0:00:41]} 5. e5 {[%emt 0:00:30]} dxe5 {[%emt 0:02:19]} 6. dxe5 {[%emt 0:00:32]} Qxd1+ {[%emt 0:03:18]} 7. Rxd1 {[%emt 0:00:10]} Nfd7 {[%emt 0:07:16]} 8. Nd5 {[%emt 0:02:23]} Bxe5 {[%emt 0:02:47]} 9. Nf3 {[%emt 0:01:01]} Bd6 {[%emt 0:03:48]} 10. Bxe7 {[%emt 0:00:30]} c6 {[%emt 0:19:09]} 11. Bxd6 {[%emt 0:01:11]} cxd5 {[%emt 0:00:24]} 12. Rxd5 {[%emt 0:00:37]} Nc6 {[%emt 0:04:44]} 13. Be2 {[%emt 0:03:54]} f6 {[%emt 0:04:12]} 14. O-O {[%emt 0:02:07]} Kf7 {[%emt 0:00:46]} 15. Bc5 {[%emt 0:07:46]} Nde5 {[%emt 0:03:20]} 16. Nxe5+ {[%emt 0:00:19]} Nxe5 {[%emt 0:01:24]} 17. f4 {[%emt 0:04:08]} Be6 {[%emt 0:03:19]} 18. Rd6 {[%emt 0:02:48]} Nc4 {[%emt 0:05:14]} 19. Rxe6 {[%emt 0:01:14]} Kxe6 {[%emt 0:01:34]} 20. Bxc4+ {[%emt 0:00:07]} Kd7 {[%emt 0:01:40]} 21. Bb5+ {[%emt 0:03:23]} Kc7 {[%emt 0:09:21]} 22. Re1 {[%emt 0:07:20]} a6 {[%emt 0:02:26]} 23. Re7+ {[%emt 0:01:05]} Kb8 {[%emt 0:02:50]} 24. Be2 {[%emt 0:02:08]} a5 {[%emt 0:09:21]} 25. Bf3 {[%emt 0:01:21]} a4 {[%emt 0:01:16]} 26. Rxb7+ {[%emt 0:04:12]} Kc8 {[%emt 0:00:11]} 27. Bd6 {[%emt 0:01:00]} Kd8 {[%emt 0:01:38]} 28. Bc6 {[%emt 0:02:58]} a3 {[%emt 0:05:00]} 29. bxa3 {[%emt 0:00:18]} h5 {[%emt 0:00:40]} 30. Rd7+ {[%emt 0:00:16]} 1-0

[Event "Austrian Youth-ch U16 Girls 2024"]
[Site "Leibnitz"]
[Date "2024.03.26"]
[Round "4.2"]
[White "Giselbrecht, Leefke"]
[Black "Poetscher, Katharina"]
[Result "0-1"]
[ECO "C24"]
[WhiteElo "1695"]
[BlackElo "1794"]
[Annotator "NA RC"]
[PlyCount "156"]
[EventDate "2024.03.23"]
[EventType "swiss"]
[EventCountry "AUT"]
[SourceTitle "playchess.com"]
[Source "ChessBase"]
[SourceQuality "1"]
[TimeControl "5400+30"]

1. e4 {[%emt 0:00:03]} e5 {[%emt 0:00:06]} 2. Bc4 {[%emt 0:00:17]} Nf6 {[%emt 0:00:12]} 3. d3 {[%emt 0:00:15]} c6 {[%emt 0:00:16]} 4. Nf3 {[%emt 0:00:57]} d5 {[%emt 0:00:20]} 5. Bb3 {[%emt 0:01:00]} a5 {[%emt 0:00:09]} 6. a4 {[%emt 0:01:21]} Bb4+ {[%emt 0:00:54]} 7. c3 {[%emt 0:02:05]} Bd6 {[%emt 0:00:30]} 8. Nbd2 {[%emt 0:02:38]} O-O {[%emt 0:03:45]} 9. O-O {[%emt 0:01:20]} Nbd7 {[%emt 0:03:07]} 10. Re1 {[%emt 0:02:06]} Nc5 {[%emt 0:06:08]} 11. Bc2 {[%emt 0:03:33]} Bg4 {[%emt 0:04:48]} 12. h3 {[%emt 0:04:56]} Bh5 {[%emt 0:00:10]} 13. Nf1 {[%emt 0:01:11]} Re8 {[%emt 0:06:59]} 14. Ng3 {[%emt 0:01:42]} Bg6 {[%emt 0:06:22]} 15. Bd2 {[%emt 0:18:54]} Bc7 {[%emt 0:16:43]} 16. Qc1 {[%emt 0:06:47]} dxe4 {[%emt 0:03:10]} 17. dxe4 {[%emt 0:10:41]} Nd3 {[%emt 0:01:49]} 18. Bxd3 {[%emt 0:00:28]} Qxd3 {[%emt 0:00:04]} 19. Re3 {[%emt 0:03:31]} Qd8 {[%emt 0:02:48]} 20. Qe1 {[%emt 0:06:03]} Bb6 {[%emt 0:04:42]} 21. Re2 {[%emt 0:00:07]} Nd7 {[%emt 0:03:03]} 22. Be3 {[%emt 0:03:18]} f6 {[%emt 0:07:43]} 23. Nh4 {[%emt 0:06:07]} Nc5 {[%emt 0:08:44]} 24. Ra3 {[%emt 0:04:23]} Bf7 {[%emt 0:01:56]} 25. Rd2 {[%emt 0:02:07]} Qc7 {[%emt 0:00:31]} 26. Qd1 {[%emt 0:03:06]} Red8 {[%emt 0:02:41]} 27. Nhf5 {[%emt 0:03:01]} Rxd2 {[%emt 0:01:16]} 28. Qxd2 {[%emt 0:01:22]} Rd8 {[%emt 0:00:39]} 29. Qe2 {[%emt 0:00:21]} Be6 {[%emt 0:08:55]} 30. b4 {[%emt 0:05:05]} axb4 {[%emt 0:02:30]} 31. cxb4 {[%emt 0:00:07]} Nb3 {[%emt 0:02:28]} 32. a5 {[%emt 0:00:53]} Bxe3 {[%emt 0:00:40]} 33. Qxe3 {[%emt 0:00:09]} Nd4 {[%emt 0:00:24]} 34. Rd3 {[%emt 0:04:57]} Nxf5 {[%emt 0:01:04]} 35. Nxf5 {[%emt 0:00:18]} Bxf5 {[%emt 0:00:31]} 36. exf5 {[%emt 0:00:06]} Rd6 {[%emt 0:00:22]} 37. Qd2 {[%emt 0:00:39]} Rxd3 {[%emt 0:00:51]} 38. Qxd3 {[%emt 0:00:04]} Qe7 {[%emt 0:00:21]} 39. Qc4+ {[%emt 0:00:16]} Kf8 {[%emt 0:00:08]} 40. b5 {[%emt 0:00:37]} cxb5 {[%emt 0:00:55]} 41. Qxb5 {[%emt 0:00:02]} Qc7 {[%emt 0:00:10]} 42. Qb4+ {[%emt 0:00:15]} Qe7 {[%emt 0:00:31]} 43. Qc4 {[%emt 0:00:36]} Qd7 {[%emt 0:00:27]} 44. Qb4+ {[%emt 0:01:43]} Ke8 {[%emt 0:01:11]} 45. Qe4 {[%emt 0:00:16]} Qc7 {[%emt 0:01:13]} 46. Qa4+ {[%emt 0:00:17]} Kd8 {[%emt 0:00:38]} 47. Qd1+ {[%emt 0:01:26]} Ke7 {[%emt 0:00:06]} 48. Qd2 {[%emt 0:00:21]} Qd7 {[%emt 0:00:47]} 49. Qb4+ {[%emt 0:00:10]} Ke8 {[%emt 0:00:14]} 50. Qb1 {[%emt 0:01:01]} Qc7 {[%emt 0:00:47]} 51. Qb5+ {[%emt 0:00:08]} Qd7 {[%emt 0:00:05]} 52. Qb1 {[%emt 0:00:07]} Qd5 {[%emt 0:00:17]} 53. Qb6 {[%emt 0:00:53]} Kd7 {[%emt 0:00:28]} 54. a6 {[%emt 0:01:37]} bxa6 {[%emt 0:01:07]} 55. Qxa6 {[%emt 0:00:09]} Qc6 {[%emt 0:00:24]} 56. Qa7+ {[%emt 0:00:53]} Qc7 {[%emt 0:00:04]} 57. Qxc7+ {[%emt 0:00:39]} Kxc7 {[%emt 0:00:05]} 58. g4 {[%emt 0:00:08]} Kd6 {[%emt 0:00:08]} 59. f3 {[%emt 0:00:17]} Kd5 {[%emt 0:00:06]} 60. Kf2 {[%emt 0:00:10]} Kd4 {[%emt 0:00:38]} 61. Ke2 {[%emt 0:00:59]} h6 {[%emt 0:01:01]} 62. Kf2 {[%emt 0:01:28]} e4 {[%emt 0:01:42]} 63. fxe4 {[%emt 0:00:21]} Kxe4 {[%emt 0:00:01]} 64. Kg3 {[%emt 0:01:01]} h5 {[%emt 0:00:56]} 65. Kh4 {[%emt 0:00:07]} hxg4 {[%emt 0:00:19]} 66. hxg4 {[%emt 0:00:03]} Kf4 {[%emt 0:00:16]} 67. Kh5 {[%emt 0:00:15]} Kf3 {[%emt 0:00:50]} 68. g5 {[%emt 0:00:08]} Kf4 {[%emt 0:00:08]} 69. gxf6 {[%emt 0:01:18]} gxf6 {[%emt 0:00:06]} 70. Kh4 {[%emt 0:00:48]} Kxf5 {[%emt 0:00:12]} 71. Kg3 {[%emt 0:00:04]} Kg5 {[%emt 0:00:24]} 72. Kf3 {[%emt 0:00:06]} Kf5 {[%emt 0:00:09]} 73. Kf2 {[%emt 0:00:09]} Kf4 {[%emt 0:00:09]} 74. Kg2 {[%emt 0:00:20]} Ke3 {[%emt 0:00:10]} 75. Kf1 {[%emt 0:00:06]} f5 {[%emt 0:00:43]} 76. Ke1 {[%emt 0:00:05]} f4 {[%emt 0:00:08]} 77. Kf1 {[%emt 0:00:13]} Kf3 {[%emt 0:00:03]} 78. Ke1 {[%emt 0:00:21]} Kg2 {[%emt 0:00:05]} 0-1

[Event "Austrian Youth-ch U16 Girls 2024"]
[Site "Leibnitz"]
[Date "2024.03.26"]
[Round "5.1"]
[White "Poetscher, Katharina"]
[Black "Brunner, Josephina Akiko"]
[Result "1-0"]
[ECO "C88"]
[WhiteElo "1794"]
[BlackElo "1697"]
[Annotator "NA RC"]
[PlyCount "71"]
[EventDate "2024.03.23"]
[EventType "swiss"]
[EventCountry "AUT"]
[SourceTitle "playchess.com"]
[Source "ChessBase"]
[SourceQuality "1"]
[TimeControl "5400+30"]

1. e4 {[%emt 0:00:03]} e5 {[%emt 0:00:14]} 2. Nf3 {[%emt 0:00:07]} Nc6 {[%emt 0:00:09]} 3. Bb5 {[%emt 0:00:07]} a6 {[%emt 0:00:19]} 4. Ba4 {[%emt 0:00:03]} Nf6 {[%emt 0:00:20]} 5. O-O {[%emt 0:00:10]} Be7 {[%emt 0:00:15]} 6. Re1 {[%emt 0:00:06]} b5 {[%emt 0:00:14]} 7. Bb3 {[%emt 0:00:04]} O-O {[%emt 0:00:17]} 8. d4 {[%emt 0:00:20]} Nxd4 {[%emt 0:00:26]} 9. Nxd4 {[%emt 0:00:14]} exd4 {[%emt 0:00:07]} 10. e5 {[%emt 0:00:13]} Ne8 {[%emt 0:00:37]} 11. Qxd4 {[%emt 0:00:13]} Bb7 {[%emt 0:00:53]} 12. c3 {[%emt 0:01:46]} d6 {[%emt 0:11:19]} 13. e6 {[%emt 0:08:21]} fxe6 {[%emt 0:02:05]} 14. Bxe6+ {[%emt 0:02:36]} Kh8 {[%emt 0:00:39]} 15. Nd2 {[%emt 0:02:25]} Bh4 {[%emt 0:04:58]} 16. g3 {[%emt 0:03:02]} Be7 {[%emt 0:06:18]} 17. Ne4 {[%emt 0:04:42]} d5 {[%emt 0:05:52]} 18. Nc5 {[%emt 0:04:25]} Bxc5 {[%emt 0:06:45]} 19. Qxc5 {[%emt 0:01:00]} Qf6 {[%emt 0:02:39]} 20. Bg5 {[%emt 0:05:38]} Qf3 {[%emt 0:01:52]} 21. Bf4 {[%emt 0:03:22]} Nd6 {[%emt 0:09:27]} 22. Re3 {[%emt 0:03:09]} Qh5 {[%emt 0:05:41]} 23. Qxc7 {[%emt 0:03:58]} Rxf4 {[%emt 0:10:06]} 24. gxf4 {[%emt 0:01:12]} Qg6+ {[%emt 0:01:01]} 25. Rg3 {[%emt 0:00:33]} Qf6 {[%emt 0:00:45]} 26. Qxd6 {[%emt 0:01:15]} Re8 {[%emt 0:00:21]} 27. Qd7 {[%emt 0:00:51]} Rxe6 {[%emt 0:02:52]} 28. Qxb7 {[%emt 0:00:15]} h6 {[%emt 0:01:26]} 29. Qxd5 {[%emt 0:00:40]} Rd6 {[%emt 0:00:21]} 30. Qe5 {[%emt 0:00:12]} Qf8 {[%emt 0:00:49]} 31. Re1 {[%emt 0:00:23]} Rd8 {[%emt 0:01:10]} 32. Qe7 {[%emt 0:01:10]} Qg8 {[%emt 0:00:28]} 33. Kf1 {[%emt 0:01:26]} Qc4+ {[%emt 0:00:35]} 34. Kg1 {[%emt 0:00:33]} Qg8 {[%emt 0:00:09]} 35. Re6 {[%emt 0:01:01]} Rd1+ {[%emt 0:02:02]} 36. Kg2 {[%emt 0:00:03]} 1-0